bitfinex-derivatives/quotes_BNBF0:USTF0_20250130
["timestamp","ask_amount","ask_price","bid_price","bid_amount"]
[1738254127160,1.0987545,681.32,680.34,1.19097066]
[1738254130055,0.2699221,681.31,680.34,1.19097066]
[1738254130660,1.0987545,681.32,680.34,1.19097066]
[1738254130858,0.26992156,681.31,680.34,1.19097066]
[1738254131058,1.0987545,681.27,680.34,1.19097066]
[1738254132654,0.26990211,681.26,680.34,1.19097066]
[1738254133254,1.0987545,681.27,680.34,1.19097066]
[1738254134761,1.0987545,681.25,680.34,1.19097066]
[1738254142265,1.0987545,681.28,680.34,1.19097066]
[1738254148365,1.0987545,681.67,680.34,1.19097066]
[1738254148366,1.0987545,681.27,680.34,1.19097066]
[1738254151770,1.0987545,681.29,680.34,1.19097066]
[1738254152369,0.26990876,681.28,680.34,1.19097066]
[1738254154372,1.0987545,681.15,680.34,1.19097066]
[1738254157173,1.0987545,681.21,680.34,1.19097066]
[1738254159177,1.0987545,681.22,680.34,1.19097066]
[1738254160278,0.76902216,681.81,680.34,1.19097066]
[1738254160576,0.29334545,681.79,680.34,1.19097066]
[1738254160778,0.26994085,681.78,680.34,1.19097066]
[1738254160983,0.29335836,681.76,680.34,1.19097066]
[1738254161175,0.26994085,681.75,680.34,1.19097066]
[1738254161379,0.29337127,681.73,680.34,1.19097066]
[1738254161575,0.26994085,681.72,680.34,1.19097066]
[1738254163181,0.29337988,681.71,680.34,1.19097066]
[1738254163377,1.09596499,681.45,680.34,1.19097066]
[1738254163681,1.09596499,681.16,680.34,1.19097066]
[1738254167180,1.09596499,681.17,680.34,1.19097066]
[1738254169977,1.09596499,681.17,680.34,0.897]
[1738254170174,1.09596499,681.22,680.34,0.897]
[1738254174291,1.09596499,681.52,680.34,0.897]
[1738254174487,0.56345911,681.51,680.34,0.897]
[1738254174789,0.56346342,681.5,680.34,0.897]
[1738254175087,0.26999314,681.49,680.34,0.897]
[1738254175482,0.29347028,681.5,680.34,0.897]
[1738254175683,0.26999869,681.49,680.34,0.897]
[1738254175887,0.29347889,681.48,680.34,0.897]
[1738254176083,0.26999869,681.47,680.34,0.897]
[1738254176289,1.09596499,681.43,680.34,0.897]
[1738254176588,0.26999869,681.42,680.34,0.897]
[1738254179386,1.09596499,681.4,680.34,0.897]
[1738254179585,0.26999869,681.39,680.34,0.897]
[1738254180884,1.09596499,681.4,680.34,0.897]
[1738254181087,0.2700003,681.39,680.34,0.897]
[1738254182088,1.09596499,681.24,680.34,0.897]
[1738254182281,0.2700003,681.23,680.34,0.897]
[1738254186193,1.09596499,681.16,680.34,0.897]
[1738254186494,0.2700003,681.15,680.34,0.897]
[1738254187789,1.09596499,681.16,680.34,0.897]
[1738254189093,1.09596499,681.19,680.34,0.897]
[1738254191696,1.09596499,681.42,680.34,0.897]
[1738254192597,0.26990201,681.41,680.34,0.897]
[1738254192798,1.09596499,681.42,680.34,0.897]
[1738254193691,0.26988243,681.41,680.34,0.897]
[1738254195298,1.09596499,681.46,680.34,0.897]
[1738254195503,0.26988628,681.45,680.34,0.897]
[1738254199004,1.09596499,681.43,680.34,0.897]
[1738254199303,0.26988628,681.42,680.34,0.897]
[1738254199528,1.09596499,681.43,680.34,0.897]
[1738254199704,0.26990279,681.42,680.34,0.897]
[1738254200903,0.26990279,681.47,680.34,0.897]
[1738254205604,0.26988349,681.46,680.34,0.897]
[1738254205810,0.26988349,681.47,680.34,0.897]
[1738254206009,0.26988349,681.46,680.34,0.897]
[1738254206210,0.26988349,681.47,680.34,0.897]
[1738254207106,0.26989946,681.46,680.34,0.897]
[1738254207311,0.26989946,681.45,680.34,0.897]
[1738254207504,0.26989946,681.44,680.34,0.897]
[1738254207705,0.26989946,681.43,680.34,0.897]
[1738254207907,0.29347889,681.48,680.34,0.897]
[1738254207908,0.26989946,681.42,680.34,0.897]
[1738254208108,0.26989946,681.41,680.34,0.897]
[1738254208308,0.26989946,681.4,680.34,0.897]
[1738254208512,0.29347889,681.48,680.34,0.897]
[1738254208811,0.26989757,681.47,680.34,0.897]
[1738254215311,0.26989557,681.46,680.34,0.897]
[1738254215517,0.26989557,681.45,680.34,0.897]
[1738254215719,0.26989557,681.44,680.34,0.897]
[1738254215919,0.26989557,681.43,680.34,0.897]
[1738254216214,0.26989557,681.42,680.34,0.897]
[1738254216421,0.26989557,681.41,680.34,0.897]
[1738254216720,0.29347889,681.48,680.34,0.897]
[1738254217121,0.26989444,681.47,680.34,0.897]
[1738254218521,0.29347889,681.48,680.34,0.897]
[1738254218722,0.26989439,681.47,680.34,0.897]
[1738254219224,1.09596499,681.45,680.34,0.897]
[1738254219426,0.26989439,681.44,680.34,0.897]
[1738254222120,1.09596499,681.37,680.34,0.897]
[1738254225122,0.26990515,681.36,680.34,0.897]
[1738254225326,1.09596499,681.31,680.34,0.897]
[1738254228431,1.09596499,681.22,680.34,0.897]
[1738254233936,1.09596499,681.18,680.34,0.897]
[1738254235030,1.09596499,681.18,680.34,1.19097066]
[1738254237537,0.29347889,681.48,680.34,1.19097066]
[1738254237538,1.09596499,681.24,680.34,1.19097066]
[1738254238939,1.09596499,681.24,680.35,0.29396634]
[1738254240341,1.09596499,681.24,680.35,1.16896634]
[1738254241440,1.09596499,681.39,680.35,1.16896634]
[1738254244039,1.09596499,681.32,680.35,1.16896634]
[1738254247146,1.09596499,681.35,680.35,1.16896634]
[1738254253550,1.09596499,681.43,680.35,1.16896634]
[1738254256749,1.09596499,681.8,680.35,1.16896634]
[1738254256750,1.09596499,681.48,680.35,1.16896634]
[1738254257949,8.76949379,689.62,680.35,1.16896634]
[1738254258145,0.29288151,682.87,680.35,1.16896634]
[1738254258348,0.26976871,682.86,680.35,1.16896634]
[1738254258549,0.26976871,682.85,680.35,1.16896634]
[1738254258745,0.26976871,682.84,680.35,1.16896634]
[1738254258946,0.26976871,682.83,680.35,1.16896634]
[1738254259152,0.29295015,682.71,680.35,1.16896634]
[1738254259345,0.26976871,682.7,680.35,1.16896634]
[1738254259544,0.26976871,682.69,680.35,1.16896634]
[1738254259744,0.2697758,682.68,680.35,1.16896634]
[1738254259966,0.2697758,682.67,680.35,1.16896634]
[1738254260148,0.29301453,682.56,680.35,1.16896634]
[1738254260349,0.2697758,682.55,680.35,1.16896634]
[1738254260551,1.09488561,681.86,680.35,1.16896634]
[1738254261653,0.2697775,681.85,680.35,1.16896634]
[1738254262851,1.09488561,681.86,680.35,1.16896634]
[1738254263052,0.26978032,681.85,680.35,1.16896634]
[1738254263254,1.09488561,681.82,680.35,1.16896634]
[1738254263554,0.26978032,681.81,680.35,1.16896634]
[1738254264548,1.09488561,681.82,680.35,1.16896634]
[1738254264751,0.26978666,681.81,680.35,1.16896634]
[1738254266255,0.26978337,681.8,680.35,1.16896634]
[1738254266449,0.26978337,681.81,680.35,1.16896634]
[1738254266654,0.56613839,682.52,680.35,1.16896634]
[1738254266655,1.09488561,681.74,680.35,1.16896634]
[1738254266854,0.26978337,681.73,680.35,1.16896634]
[1738254269154,0.26978337,681.72,680.35,1.16896634]
[1738254269360,0.26978337,681.71,680.35,1.16896634]
[1738254269661,0.26978337,681.7,680.35,1.16896634]
[1738254269857,0.26978337,681.75,680.35,1.16896634]
[1738254270056,0.26978337,681.74,680.35,1.16896634]
[1738254270258,1.09488561,681.76,680.35,1.16896634]
[1738254270259,0.26978337,681.75,680.35,1.16896634]
[1738254270563,0.26978337,681.74,680.35,1.16896634]
[1738254270757,0.26978337,681.75,680.35,1.16896634]
[1738254270958,0.26978337,681.74,680.35,1.16896634]
[1738254271160,0.26978337,681.75,680.35,1.16896634]
[1738254271362,0.26978337,681.74,680.35,1.16896634]
[1738254271561,0.26978337,681.75,680.35,1.16896634]
[1738254271762,0.26978337,681.74,680.35,1.16896634]
[1738254272761,1.09488561,681.75,680.35,1.16896634]
[1738254272957,0.26977799,681.74,680.35,1.16896634]
[1738254276064,1.09488561,681.75,680.35,1.16896634]
[1738254276265,0.2697848,681.74,680.35,1.16896634]
[1738254277761,0.26979341,681.73,680.35,1.16896634]
[1738254277966,0.26979341,681.72,680.35,1.16896634]
[1738254278168,0.26979341,681.74,680.35,1.16896634]
[1738254278361,0.26979341,681.73,680.35,1.16896634]
[1738254278566,0.26979341,681.74,680.35,1.16896634]
[1738254280364,1.09488561,681.7,680.35,1.16896634]
[1738254280568,0.26979341,681.69,680.35,1.16896634]
[1738254282771,1.09488561,681.67,680.35,1.16896634]
[1738254282972,0.26978889,681.66,680.35,1.16896634]
[1738254286069,1.09488561,681.67,680.35,1.16896634]
[1738254286272,1.09488561,681.58,680.35,1.16896634]
[1738254290471,5.26196501,689.59,680.35,1.16896634]
[1738254290472,1.09488561,681.68,680.35,1.16896634]
[1738254293879,1.09488561,681.6,680.35,1.16896634]
[1738254297181,1.09488561,681.58,680.35,1.16896634]
[1738254300184,1.09488561,681.56,680.35,1.16896634]
[1738254301783,0.56583555,682.24,680.35,1.16896634]
[1738254301983,0.29316056,682.22,680.35,1.16896634]
[1738254302584,0.26976136,682.21,680.36,0.25592101]
[1738254303789,0.29316915,682.2,680.38,0.29395337]
[1738254303985,1.09801424,681.52,680.39,0.25592101]
[1738254304689,1.09801424,681.52,680.41,0.29394041]
[1738254304882,1.09801424,681.52,680.42,0.25592101]
[1738254305083,1.09801424,681.52,680.44,0.29392745]
[1738254306887,1.09801424,681.59,680.44,0.29392745]
[1738254307285,1.09801424,681.59,680.45,0.25586746]
[1738254307490,1.09801424,681.59,680.44,0.29392745]
[1738254307990,1.09801424,681.59,680.45,0.25586653]
[1738254308186,1.09801424,681.59,680.47,0.2939145]
[1738254310292,1.09801424,681.59,680.48,0.25585789]
[1738254310492,1.09801424,681.59,680.5,0.29390154]
[1738254310689,1.09801424,681.8,680.5,0.29390154]
[1738254311292,1.09801424,681.8,680.51,0.25583766]
[1738254311492,1.09801424,681.8,680.53,0.29388858]
[1738254314393,1.09801424,681.98,680.53,0.29388858]
[1738254316897,0.26967689,681.97,680.53,0.29388858]
[1738254317500,0.26968311,681.96,680.53,0.29388858]
[1738254317797,1.09801424,682.07,680.53,0.29388858]
[1738254317990,0.26968102,682.06,680.53,0.29388858]
[1738254319902,1.09801424,682.07,680.53,0.29388858]
[1738254320102,0.26968026,682.06,680.53,0.29388858]
[1738254320804,0.26967522,682.05,680.53,0.29388858]
[1738254321006,0.26967522,682.08,680.53,0.29388858]
[1738254324407,0.2696735,682.07,680.53,0.29388858]
[1738254324608,0.2696735,682.11,680.53,0.29388858]
[1738254324908,0.2696735,682.1,680.53,0.29388858]
[1738254325207,0.2696735,682.09,680.53,0.29388858]
[1738254325411,0.2696735,682.11,680.53,0.29388858]
[1738254326011,0.2696758,682.1,680.53,0.29388858]
[1738254326208,0.2696758,682.09,680.53,0.29388858]
[1738254326410,0.2696758,682.08,680.53,0.29388858]
[1738254326606,0.2696758,682.11,680.53,0.29388858]
[1738254326803,0.2696758,682.1,680.53,0.29388858]
[1738254327005,0.2696758,682.11,680.53,0.29388858]
[1738254327209,0.2696758,682.11,680.54,0.25582905]
[1738254327511,0.2696758,682.11,680.56,0.29387563]
[1738254328011,0.2696758,682.11,680.57,0.25583592]
[1738254328210,0.2696758,682.11,680.59,0.29386267]
[1738254329215,1.09801424,682.12,680.59,0.29386267]
[1738254329408,0.26966647,682.11,680.59,0.29386267]
[1738254330313,1.09801424,682.05,680.59,0.29386267]
[1738254330515,0.26966647,682.04,680.59,0.29386267]
[1738254331012,0.26966185,682.03,680.59,0.29386267]
[1738254331314,0.26966185,682.02,680.59,0.29386267]
[1738254331613,0.26966185,682.01,680.59,0.29386267]
[1738254331808,0.26966185,682.04,680.59,0.29386267]
[1738254332512,1.09801424,682.05,680.59,0.29386267]
[1738254332708,0.26967165,682.04,680.59,0.29386267]
[1738254334512,0.26967165,682.04,680.59,1.32686267]
[1738254337321,1.09801424,681.98,680.59,1.32686267]
[1738254338218,0.26967079,681.97,680.59,1.32686267]
[1738254338518,1.09801424,681.98,680.59,1.32686267]
[1738254339620,0.26967095,681.97,680.59,1.32686267]
[1738254339818,1.09801424,681.98,680.59,1.32686267]
[1738254340020,1.09801424,681.94,680.59,1.32686267]
[1738254342722,1.09801424,681.87,680.59,1.32686267]
[1738254345826,1.09801424,681.83,680.59,1.32686267]
[1738254349229,1.09801424,681.78,680.59,1.32686267]
[1738254352934,1.09801424,681.75,680.59,1.32686267]
[1738254356442,1.09801424,681.67,680.59,1.32686267]
[1738254356837,0.2697588,681.66,680.59,1.32686267]
[1738254357141,1.09801424,681.67,680.59,1.32686267]
[1738254357340,0.2697628,681.66,680.59,1.32686267]
[1738254359341,1.09801424,681.63,680.59,1.32686267]
[1738254359535,0.2697628,681.62,680.59,1.32686267]
[1738254360541,1.09801424,681.63,680.59,1.32686267]
[1738254361743,0.26979485,681.62,680.59,1.32686267]
[1738254362943,0.26979485,681.65,680.59,1.32686267]
[1738254363142,1.09801424,681.66,680.59,1.32686267]
[1738254363143,0.26979485,681.64,680.59,1.32686267]
[1738254363344,0.26979485,681.65,680.59,1.32686267]
[1738254363545,0.26979485,681.64,680.59,1.32686267]
[1738254363746,0.26979485,681.65,680.59,1.32686267]
[1738254363944,0.26979485,681.64,680.59,1.32686267]
[1738254364138,0.26979485,681.65,680.59,1.32686267]
[1738254366644,0.26979485,681.64,680.59,1.32686267]
[1738254366839,0.26979485,681.63,680.59,1.32686267]
[1738254367144,0.26979485,681.62,680.59,1.32686267]
[1738254367345,0.26979485,681.7,680.59,1.32686267]
[1738254367540,0.26979485,681.69,680.59,1.32686267]
[1738254367740,0.26979485,681.7,680.59,1.32686267]
[1738254367944,0.26979485,681.69,680.59,1.32686267]
[1738254368140,0.26979485,681.7,680.59,1.32686267]
[1738254368343,0.26979485,681.69,680.59,1.32686267]
[1738254368544,0.26979485,681.7,680.59,1.32686267]
[1738254368740,0.26979485,681.69,680.59,1.32686267]
[1738254368942,0.26979485,681.68,680.59,1.32686267]
[1738254369155,0.26979485,681.7,680.59,1.32686267]
[1738254369449,0.26979485,681.69,680.59,1.32686267]
[1738254369645,0.26979485,681.7,680.59,1.32686267]
[1738254369842,0.26979485,681.69,680.59,1.32686267]
[1738254370149,0.26979485,681.68,680.59,1.32686267]
[1738254370350,0.26979485,681.7,680.59,1.32686267]
[1738254370550,1.09801424,681.71,680.59,1.32686267]
[1738254370551,0.2698458,681.69,680.59,1.32686267]
[1738254370843,0.2698458,681.68,680.59,1.32686267]
[1738254371049,0.2698458,681.7,680.59,1.32686267]
[1738254371351,0.2698458,681.69,680.59,1.32686267]
[1738254371549,0.2698458,681.68,680.59,1.32686267]
[1738254371749,0.2698458,681.7,680.59,1.32686267]
[1738254372045,0.2698458,681.69,680.59,1.32686267]
[1738254372250,0.2698458,681.7,680.59,1.32686267]
[1738254373652,1.36786004,681.7,680.59,1.32686267]
[1738254373844,0.2698458,681.69,680.59,1.32686267]
[1738254375452,1.09801424,681.7,680.59,1.32686267]
[1738254375649,0.26984261,681.69,680.59,1.32686267]
[1738254376450,0.26984261,681.7,680.59,1.32686267]
[1738254376646,0.26984261,681.69,680.59,1.32686267]
[1738254376849,0.26984261,681.7,680.59,1.32686267]
[1738254377045,0.26984261,681.69,680.59,1.32686267]
[1738254377245,0.26984261,681.68,680.59,1.32686267]
[1738254377447,0.26984261,681.67,680.59,1.32686267]
[1738254377649,0.26984261,681.7,680.59,1.32686267]
[1738254380156,0.2698658,681.69,680.59,1.32686267]
[1738254380356,0.2698658,681.75,680.59,1.32686267]
[1738254380549,0.26986917,681.74,680.59,1.32686267]
[1738254380749,0.26986917,681.75,680.59,1.32686267]
[1738254380949,0.26986917,681.74,680.59,1.32686267]
[1738254381152,0.26986917,681.75,680.59,1.32686267]
[1738254381354,0.26986917,681.74,680.59,1.32686267]
[1738254381652,0.26986917,681.73,680.59,1.32686267]
[1738254381954,0.56324474,681.72,680.59,1.32686267]
[1738254382156,0.56324905,681.71,680.59,1.32686267]
[1738254382357,0.56325335,681.7,680.59,1.32686267]
[1738254382557,0.56325766,681.69,680.59,1.32686267]
[1738254382749,0.56326196,681.68,680.59,1.32686267]
[1738254383055,0.26986917,681.67,680.59,1.32686267]
[1738254383957,1.09801424,681.65,680.59,1.32686267]
[1738254384154,0.26986917,681.64,680.59,1.32686267]
[1738254387362,1.09801424,681.59,680.59,1.32686267]
[1738254387561,0.26986917,681.58,680.59,1.32686267]
[1738254388359,0.26986917,681.58,680.59,1.033]
[1738254390762,1.09801424,681.5,680.59,1.033]
[1738254390958,0.26986917,681.49,680.59,1.033]
[1738254394267,1.09801424,681.43,680.59,1.033]
[1738254394470,0.26986917,681.42,680.59,1.033]
[1738254397373,1.09801424,681.37,680.59,1.033]
[1738254397573,0.26986917,681.36,680.59,1.033]
[1738254398066,1.09801424,681.37,680.59,1.033]
[1738254398270,0.26996364,681.36,680.59,1.033]
[1738254398470,1.09801424,681.37,680.59,1.033]
[1738254398971,0.26996335,681.36,680.59,1.033]
[1738254399173,1.09801424,681.37,680.59,1.033]
[1738254399374,0.26996427,681.36,680.59,1.033]
[1738254400175,0.26997472,681.35,680.59,1.033]
[1738254400474,0.26997472,681.34,680.59,1.033]
[1738254400676,0.26997472,681.36,680.59,1.033]
[1738254400976,0.26997472,681.35,680.59,1.033]
[1738254401172,0.26997472,681.34,680.59,1.033]
[1738254401375,0.26997472,681.33,680.59,1.033]
[1738254401569,0.26997472,681.32,680.59,1.033]
[1738254401775,0.26997472,681.41,680.59,1.033]
[1738254401971,0.26997472,681.4,680.59,1.033]
[1738254402176,0.26997472,681.39,680.59,1.033]
[1738254402378,0.26997472,681.41,680.59,1.033]
[1738254402673,0.26997472,681.4,680.59,1.033]
[1738254402872,0.26997472,681.39,680.59,1.033]
[1738254403078,0.26997472,681.41,680.59,1.033]
[1738254403381,0.26997472,681.4,680.59,1.033]
[1738254403580,0.26998069,681.39,680.59,1.033]
[1738254403778,0.26998069,681.41,680.59,1.033]
[1738254403979,1.09801424,681.39,680.59,1.033]
[1738254404179,0.26998069,681.38,680.59,1.033]
[1738254407080,0.29352627,681.37,680.59,1.033]
[1738254407283,1.09801424,681.22,680.59,1.033]
[1738254407483,0.26998069,681.21,680.59,1.033]
[1738254411891,0.26998069,681.28,680.59,1.033]
[1738254412090,0.26998069,681.27,680.59,1.033]
[1738254412291,0.26998069,681.28,680.59,1.033]
[1738254412489,0.26998069,681.27,680.59,1.033]
[1738254412690,0.26998069,681.28,680.59,1.033]
[1738254412886,0.26998069,681.27,680.59,1.033]
[1738254413089,0.26998069,681.28,680.59,1.033]
[1738254413287,0.26998069,681.27,680.59,1.033]
[1738254413488,0.27001214,681.26,680.59,1.033]
[1738254413795,0.27001214,681.25,680.59,1.033]
[1738254413995,0.27001214,681.28,680.59,1.033]
[1738254414194,0.27001214,681.27,680.59,1.033]
[1738254414396,0.27001214,681.28,680.59,1.033]
[1738254414589,0.27001214,681.27,680.59,1.033]
[1738254414793,0.27001214,681.3,680.59,1.033]
[1738254416792,0.27001597,681.29,680.59,1.033]
[1738254416996,1.09801424,681.31,680.59,1.033]
[1738254416997,0.27001597,681.28,680.59,1.033]
[1738254417198,0.27001597,681.3,680.59,1.033]
[1738254417394,0.27001597,681.29,680.59,1.033]
[1738254417597,0.27001597,681.3,680.59,1.033]
[1738254417797,0.27001597,681.29,680.59,1.033]
[1738254417998,0.27001597,681.3,680.59,1.033]
[1738254418198,0.27001597,681.29,680.59,1.033]
[1738254418499,0.27001172,681.28,680.59,1.033]
[1738254418693,0.27001172,681.27,680.59,1.033]
[1738254418895,0.27001172,681.26,680.59,1.033]
[1738254419098,0.27001172,681.3,680.59,1.033]
[1738254419298,0.27001172,681.29,680.59,1.033]
[1738254419601,0.27001172,681.28,680.59,1.033]
[1738254419799,0.27001172,681.27,680.59,1.033]
[1738254420000,0.27001248,681.26,680.59,1.033]
[1738254420202,0.27001248,681.25,680.59,1.033]
[1738254420403,0.27001248,681.3,680.59,1.033]
[1738254420601,0.27001248,681.29,680.59,1.033]
[1738254420904,0.27001248,681.28,680.59,1.033]
[1738254421104,0.27001248,681.3,680.59,1.033]
[1738254421303,0.27001248,681.29,680.59,1.033]
[1738254421502,0.27001248,681.3,680.59,1.033]
[1738254421704,1.09801424,681.31,680.59,1.033]
[1738254421903,0.26997818,681.3,680.59,1.033]
[1738254422408,1.09801424,681.21,680.59,1.033]
[1738254423808,0.26997389,681.2,680.59,1.033]
[1738254425801,0.26997389,681.31,680.59,1.033]
[1738254426006,0.26997389,681.3,680.59,1.033]
[1738254426206,1.09801424,681.32,680.59,1.033]
[1738254426207,0.26997389,681.31,680.59,1.033]
[1738254426406,0.26997389,681.3,680.59,1.033]
[1738254426608,0.26997389,681.29,680.59,1.033]
[1738254426808,0.26997389,681.28,680.59,1.033]
[1738254427008,0.26997389,681.31,680.59,1.033]
[1738254427209,0.26997389,681.3,680.59,1.033]
[1738254427406,0.26997389,681.29,680.59,1.033]
[1738254427608,0.26997389,681.31,680.59,1.033]
[1738254427802,0.26997389,681.3,680.59,1.033]
[1738254428003,0.26997389,681.29,680.59,1.033]
[1738254428202,0.26997389,681.28,680.59,1.033]
[1738254428402,0.26997389,681.31,680.59,1.033]
[1738254429212,1.09801424,681.27,680.59,1.033]
[1738254429511,0.26993442,681.26,680.59,1.033]
[1738254430707,1.09801424,681.27,680.59,1.033]
[1738254430911,0.26992935,681.26,680.59,1.033]
[1738254431613,1.09801424,681.27,680.59,1.033]
[1738254432012,0.26991567,681.26,680.59,1.033]
[1738254432810,1.09801424,681.25,680.59,1.033]
[1738254436821,1.09801424,681.34,680.59,1.033]
[1738254437120,0.26990146,681.33,680.59,1.033]
[1738254439417,1.09801424,681.34,680.59,1.033]
[1738254440322,0.29352627,681.37,680.59,1.033]
[1738254440524,0.26989697,681.36,680.59,1.033]
[1738254440820,0.26990048,681.35,680.59,1.033]
[1738254441021,0.26990048,681.36,680.59,1.033]
[1738254441221,0.26990048,681.35,680.59,1.033]
[1738254441422,0.26990048,681.36,680.59,1.033]
[1738254441615,0.26990048,681.35,680.59,1.033]
[1738254441923,0.26990048,681.34,680.59,1.033]
[1738254442122,0.2699066,681.36,680.59,1.033]
[1738254442422,0.29352627,681.37,680.59,1.033]
[1738254442622,0.26990689,681.36,680.59,1.033]
[1738254444124,0.29352627,681.37,680.59,1.033]
[1738254444125,0.2699049,681.35,680.59,1.033]
[1738254444323,0.2699049,681.36,680.59,1.033]
[1738254444528,0.29352627,681.37,680.59,1.033]
[1738254444725,0.26990536,681.36,680.59,1.033]
[1738254445928,0.26990476,681.35,680.59,1.033]
[1738254446124,0.26990476,681.34,680.59,1.033]
[1738254446325,0.26990476,681.33,680.59,1.033]
[1738254446526,0.26990476,681.36,680.59,1.033]
[1738254450425,1.09801424,681.47,680.59,1.033]
[1738254450630,5.26196501,689.33,680.59,1.033]
[1738254450631,1.09801424,681.43,680.59,1.033]
[1738254454542,1.09801424,681.89,680.59,1.033]
[1738254455437,0.29330674,681.88,680.59,1.033]
[1738254457134,0.26987388,681.87,680.59,1.033]
[1738254457841,1.09801424,681.83,680.59,1.033]
[1738254458042,0.29333255,681.82,680.59,1.033]
[1738254458242,0.26987359,681.81,680.59,1.033]
[1738254458542,0.29334115,681.8,680.59,1.033]
[1738254459441,0.2698729,681.79,680.59,1.033]
[1738254459643,0.29334976,681.78,680.59,1.033]
[1738254459841,0.2698729,681.77,680.59,1.033]
[1738254460041,0.29335836,681.76,680.59,1.033]
[1738254460239,0.2698729,681.75,680.59,1.033]
[1738254460443,0.29336697,681.74,680.59,1.033]
[1738254460838,0.26987018,681.73,680.59,1.033]
[1738254461040,0.29337557,681.72,680.59,1.033]
[1738254461241,0.26987018,681.71,680.59,1.033]
[1738254464146,1.09801424,681.39,680.59,1.033]
[1738254469145,1.09801424,681.36,680.59,1.033]
[1738254473252,1.09801424,681.34,680.59,1.033]
[1738254475347,1.09801424,681.32,680.59,1.033]
[1738254477554,1.09801424,681.34,680.59,1.033]
[1738254479954,1.09801424,681.3,680.59,1.033]
[1738254483361,1.09801424,681.25,680.59,1.033]
[1738254485961,1.09801424,681.26,680.59,1.033]
[1738254489865,1.09801424,681.23,680.59,1.033]
[1738254495771,1.09801424,681.37,680.59,1.033]
[1738254499072,1.09801424,681.35,680.59,1.033]
[1738254502175,1.09801424,681.36,680.59,1.033]
[1738254503774,0.26990031,681.35,680.59,1.033]
[1738254503973,1.09801424,681.36,680.59,1.033]
[1738254504772,0.26991774,681.35,680.59,1.033]
[1738254505279,1.09801424,681.36,680.59,1.033]
[1738254505479,0.26992854,681.35,680.59,1.033]
[1738254505680,1.09801424,681.24,680.59,1.033]
[1738254507980,0.7704554,681.71,680.59,1.033]
[1738254507981,1.09801424,681.15,680.59,1.033]
[1738254511281,1.09801424,681.16,680.59,1.033]
[1738254514383,1.09801424,681.21,680.59,1.033]
[1738254517284,1.09801424,681.24,680.59,1.033]
[1738254520287,1.09801424,681.23,680.59,1.033]
[1738254524494,1.09801424,681.2,680.59,1.033]
[1738254526591,1.09801424,681.22,680.59,1.033]
[1738254530294,1.09801424,681.54,680.59,1.033]
[1738254530295,1.09801424,681.3,680.59,1.033]
[1738254533696,1.09801424,681.34,680.59,1.033]
[1738254536595,0.7704554,681.69,680.59,1.033]
[1738254536596,1.09801424,681.36,680.59,1.033]
[1738254540497,1.09801424,681.39,680.59,1.033]
[1738254543203,1.09801424,681.4,680.59,1.033]
[1738254546302,1.09801424,681.43,680.59,1.033]
[1738254549812,1.09801424,681.4,680.59,1.033]
[1738254552311,5.26454178,689.4,680.59,1.033]
[1738254552312,1.09801424,681.58,680.59,1.033]
[1738254552909,0.26981936,681.57,680.59,1.033]
[1738254554812,1.09801424,681.58,680.59,1.033]
[1738254555314,0.26981676,681.57,680.59,1.033]
[1738254555514,1.09801424,681.58,680.59,1.033]
[1738254555913,1.09801424,681.53,680.59,1.033]
[1738254559018,1.09801424,681.55,680.59,1.033]
[1738254560921,0.26983641,681.54,680.59,1.033]
[1738254561120,1.09801424,681.55,680.59,1.033]
[1738254561322,0.26983061,681.54,680.59,1.033]
[1738254561522,1.36784485,681.54,680.59,1.033]
[1738254561723,0.26983061,681.53,680.59,1.033]
[1738254562022,1.09801424,681.54,680.59,1.033]
[1738254565319,1.09801424,681.53,680.59,1.033]
[1738254571130,1.09801424,681.54,680.59,1.033]
[1738254573634,1.09801424,681.56,680.59,1.033]
[1738254577137,1.09801424,681.53,680.59,1.033]
[1738254579540,1.09801424,681.52,680.59,1.033]
[1738254581440,0.26982838,681.51,680.59,1.033]
[1738254583844,1.09801424,681.44,680.59,1.033]
[1738254587149,1.09801424,681.33,680.59,1.033]
[1738254591252,1.09801424,681.34,680.59,1.033]
[1738254597952,1.09801424,681.33,680.59,1.033]
[1738254600559,1.09801424,681.36,680.59,1.033]
[1738254603556,1.09801424,681.37,680.59,1.033]